Workbook

Sheet Interstate Widening
C1: Virginia Freeway Widening Projects | F1: Last Update: 2-4-2026
C2: Defined as widening a segment of a 4-lane or wider freeway | F2: Author: Scott M. Kozel
C3: UC = Under Construction | D3: Green - recent opening | G3: The Interstate Highway System in Virginia is 1,118.68 miles long
C5: Interstate Highways
B6: Route | C6: Limit | D6: Limit | E6: Miles | F6: Description | G6: Complete | H6: Miles U.C. | I6: Comment | K6: Summary Mileages
B7: 64 | C7: 204.9 (just west of the Bottoms Bridge exit) | D7: 215.6 (just east of the New Kent Courthouse/Providence Forge exit) | E7: UC | F7: 4 lanes widened to 6 | G7: 2026 | H7: 11 | I7: I-64 GAP Segment A award 11-2023, $210 million | K7: Route | L7: Compl. | M7: U.C.
B8: 64 | C8: 215.6 (just east of the New Kent Courthouse/Providence Forge exit) | D8: 224.3 (at the New Kent and James City County line) | E8: UC | F8: 4 lanes widened to 6 | G8: 2028 | H8: 9 | I8: I-64 GAP Segment B - u.c. as of 5-30-2025 | K8: 64 | L8: =SUM(E7:E27) -> 85 | M8: =SUM(H7:H27) -> 49
B9: 64 | C9: 224.3 (New Kent/James City County line) | D9: 233.0 (1.15 miles west of Route 199 (exit 234)) | E9: UC | F9: 4 lanes widened to 6 | G9: 2027 | H9: 9 | I9: I-64 GAP Segment C, $174 million design-build contract was awarded on April 16, 2024 to Allan Myers, in a joint-venture with Wagman. Const. started Nov. 10. | K9: 66 | L9: =SUM(E28:E31) -> 52 | M9: =SUM(H28:H31) -> 0
B10: 64 | C10: Tidewater Drive | D10: Patrol Road (near I-564) | E10: UC | F10: 6 lanes widened to 8 | G10: 2026 | H10: 2 | I10: HREL Norfolk Segment 1A, Award Fall 2022, 2 mi., $163M | K10: 81 | L10: =SUM(E32:E43) -> 30 | M10: =SUM(H32:H43) -> 31
B11: 64 | C11: Tidewater Drive | D11: I-264 | E11: UC | F11: 6 lanes widened to 8 | G11: 2028 | H11: 7 | I11: HREL Norfolk Segment 1B, NTP Summer 2025, 7 mi., $315M | K11: 95 | L11: =SUM(E44:E53) -> 159 | M11: =SUM(H44:H53) -> 0
B12: 64 | C12: LaSalle Blvd. | D12: Mallory Street | E12: UC | F12: 6 lanes widened to 8 | G12: 2026 | H12: 2 | I12: HREL Hampton Segment 4C, NTP Summer 2022, 2.4 mi., $313M | K12: 264 | L12: =SUM(E54:E56) -> 21 | M12: =SUM(H54:H56) -> 0
B13: 64 | C13: Mallory Street in Hampton | D13: I-564 | E13: UC | F13: 4 lanes widened to 8 | G13: 2026 | H13: 9 | I13: HRBT Expansion (Spr. 2027), award Oct. 2020, $3.9B | K13: 395 | L13: =SUM(E57) -> 7 | M13: =SUM(H57) -> 0
B14: 64 | C14: I-264/I-664 Bowers Hill | D14: East of I-464 | E14: 9 | F14: 4 lanes widened to 6 | G14: 2024 | I14: HREL Chesapeake Segment 2A, High Rise Br., $524M. New bridge opened July 2022. All lanes open 2-18-2024 | K14: 495 | L14: =SUM(E58:E62) -> 42 | M14: =SUM(H58:H62) -> 0
B15: 64 | C15: 1.257 Miles West of Rt 199 - Lightfoot (Exit 234) | D15: 1.052 Miles West of Rt 199 - Humelsine Pkwy (Exit 242) | E15: 8 | F15: 4 lanes widened to 6 | G15: 2021 | I15: Segment 3 -- compl. Nov. -- total $244M | K15: 564 | L15: =SUM(E63) -> 3 | M15: =SUM(H63) -> 0
B16: 64 | C16: I-295 at Sandston | D16: VA-249 at Bottoms Bridge | E16: 4 | F16: 4 lanes widened to 6 | G16: 2019 | I16: total $50.5M | K16: TOTALS | L16: =SUM(L8:L15) -> 399 | M16: =SUM(M8:M15) -> 80
B17: 64 | C17: 1.05 Miles West of Rte 199 (Humelsine Pkwy/Marquis Ctr Pkwy) | D17: 0.54 Miles East of Rte 238 (Yorktown Rd) | E17: 7 | F17: 4 lanes widened to 6 | G17: 2019 | I17: Segment 2 -- total $175.8M
B18: 64 | C18: 0.52 miles east of Route 238 (Yorktown Road) | D18: 1.55 miles west of Route 143 (Jefferson Ave) | E18: 6 | F18: 4 lanes widened to 6 | G18: 2018 | I18: Segment 1 -- total $114M (Interstate 64 Widening Project in York and James City counties and Newport News) | K18: Non-Int. | L18: =E73 -> 56 | M18: 0
B19: 64 | C19: 0.99 MI W RTE 623 (WB - RTE 622, EB - RTE 623) | D19: 0.38 MI W RTE 295 IN SHORT PUMP (POUNCEY TRACT RD) | E19: 4 | F19: 4 and 6 lanes widened to 6 and 8 | G19: 2015 | I19: total $36.9M | K19: TOTAL | L19: =SUM(L16,L18) -> 455 | M19: =SUM(M16,M18) -> 80
B20: 64 | C20: Hampton Roads Center Parkway | D20: I-664 | E20: 3 | F20: 6 lanes widened to 8, 10 and 12 lanes | G20: 2006 | I20: Coliseum Central Project
B21: 64 | C21: Bland Blvd. in Newport News | D21: Hampton Roads Center Parkway | E21: 7 | F21: 6 lanes widened to 8 | G21: 2001
B22: 64 | C22: US-17 J. Clyde Morris Blvd. | D22: Bland Blvd. in Newport News | E22: 4 | F22: 4 lanes widened to 6 | G22: 1999
B23: 64 | C23: I-264 in Norfolk | D23: I-464 in Chesapeake | E23: 7 | F23: 4 lanes widened to 8 | G23: 1998
B24: 64 | C24: VA-134 Magruder Blvd. | D24: US-17 J. Clyde Morris Blvd. | E24: 4 | F24: 4 lanes widened to 6 | G24: 1995
B25: 64 | C25: I-564 | D25: South of I-264 in Norfolk | E25: 9 | F25: 6 lanes widened to 3-2-3 | G25: 1992 | I25: Center roadway reversible
B26: 64 | C26: Glenside Dr. in Henrico Co. | D26: West of I-295 Short Pump | E26: 7 | F26: 4 lanes widened to 6 | G26: 1990
B27: 64 | C27: VA-134 Magruder Blvd. | D27: Mallory Street in Hampton | E27: 6 | F27: 4 lanes widened to 6 | G27: 1988
B28: 66 | C28: US-29 at Gainesville | D28: I-495 Beltway | E28: 22 | F28: 6 and 8 lanes widened to 10 | G28: 2022 | I28: Nov. 2022 compl.
B29: 66 | C29: Dulles Connector Road | D29: Fairfax Drive | E29: 4 | F29: EBL 2 lanes widened to 3 | G29: 2020 | I29: Dec. 2020 compl., $85M, 3.7 mi.
B30: 66 | C30: US-15 at Haymarket | D30: VA-234 at Manassas | E30: 8 | F30: 4 and 6 lanes widened to 8 | G30: 2016
B31: 66 | C31: VA-234 at Manassas | D31: I-495 Beltway | E31: 18 | F31: 4 and 6 lanes widened to 8 | G31: 1997
B32: 81 | C32: MM 243 Rockingham County | D32: MM 247 Harrisonburg | E32: UC | F32: 4 lanes widened to 6 | G32: 2031 | H32: 7 | I32: Award 1-2026 $218.9 million to Triton Construction Inc. of St. Albans, W.Va.
B33: 81 | C33: MM 234.1 in Augusta County | D33: MM 237.9 in Rockingham County | E33: UC | F33: 4 lanes widened to 6 | G33: 2027 | H33: 4 | I33: $61.4 million contract awarded 12-2024 to Branch Civil Inc.; truck-climbing lanes near Weyers Cave
B34: 81 | C34: I-581 (MM 143) | D34: US 220 / ALT US 220 Troutville (MM 150) | E34: UC | F34: 4 lanes widened to 6 | G34: 2029 | H34: 7 | I34: $479 million D/B contract award July 2024 to Branch Civil Inc., construction begin fall 2025, finish summer 2031
B35: 81 | C35: South of VA-55 Int. (295.4) | D35: South of I-66 Int. (299.6) | E35: UC | F35: SBL widened from 2 lanes to 3 lanes | G35: 2028 | H35: 4 | I35: Award 10-2024 $58.6 million contract to Shirley Contracting Company LLC
B36: 81 | C36: VA-262 | D36: VA-262 north | E36: UC | F36: 4 lanes widened to 6 | G36: 2027 | H36: 4 | I36: Award 4-2023, $101M
B37: 81 | C37: Route 641 (MM 136.6) | D37: 0.3 MI north of Rt 419 (MM 141.8) | E37: UC | F37: 4 lanes widened to 6 | G37: 2026 | H37: 5 | I37: Started late 2021 - 5.1 miles, $138 M
B38: 81 | C38: Exit 141 (Route 419 in Salem) | D38: Exit 143 (I-581 in Roanoke) | E38: 2 | F38: 4 lanes widened to 6 | G38: 2022 | I38: Complete Summer 2022
B39: 81 | C39: US-460 at Christiansburg | D39: VA-603 at Ironto | E39: 8 | F39: SBL widened from 2 lanes to 3 lanes | G39: 2013
B40: 81 | C40: US-11 north of Lexington | D40: north | E40: 7 | F40: NBL widened from 2 lanes to 3 lanes | G40: 2012
B41: 81 | C41: Christiansburg US-460 area | E41: 3 | F41: 4 lanes widened to 6 | G41: 2001
B42: 81 | C42: VA/TN border | D42: VA-659 in Bristol | E42: 7 | F42: 4 lanes widened to 6 | G42: 1999
B43: 81 | C43: West of I-81 at Fort Chiswell | D43: I-81 at Fort Chiswell | E43: 3 | F43: 4 lanes widened to 6 | G43: 1987 | I43: I-81/I-77 overlap
B44: 95 | C44: VA-3 | D44: N. of US-17 | E44: 4 | F44: 3-3-3 widened to 3-3-3-3 | G44: 2023 | I44: I-95 Northbound Rappahannock River Crossing | K44: Complete Nov. 2023 | N44: Tabulate
B45: 95 | C45: US-17 at Falmouth | D45: VA-610 at Garrisonville | E45: 9 | F45: 6 lanes widened to 3-2-3 | G45: 2023 | I45: Center roadway reversible | J45: PPTA | K45: Complete Aug. 2023 | N45: question
B46: 95 | C46: South of VA-3 | D46: N. of US-17 | E46: 5 | F46: 6 lanes widened to 3-3-3 | G46: 2022 | I46: I-95 Southbound Rappahannock River Crossing | K46: Complete May 2022
B47: 95 | C47: VA-610 at Garrisonville | D47: VA-234 at Dumfries | E47: 9 | F47: 6 lanes widened to 3-2-3 | G47: 2014 | I47: Center roadway reversible | J47: PPTA
B48: 95 | C48: Dale Blvd. in Prince William Co. | D48: I-495 Beltway | E48: 12 | F48: 3-2-3 and 4-2-4 widened to 3-3-3 and 4-3-4 | G48: 2014 | I48: Center roadway reversible | J48: PPTA
B49: 95 | C49: VA-123 at Woodbridge | D49: VA-286 at Newington | E49: 7 | F49: 3-2-3 widened to 4-2-4 | G49: 2011 | I49: Center roadway reversible
B50: 95 | C50: VA-234 at Dumfries | D50: VA-644 at Springfield | E50: 16 | F50: 6 lanes widened to 3-2-3 | G50: 1997 | I50: Center roadway reversible
B51: 95 | C51: VA-54 at Ashland | D51: VA-619 at Triangle | E51: 58 | F51: 4 lanes widened to 6 | G51: 1987
B52: 95 | C52: Crater Road in Petersburg | D52: Maury Street in Richmond | E52: 22 | F52: 4 lanes widened to 6 | G52: 1977 | I52: Richmond-Petrsburg Turnpike | J52: Toll
B53: 95 | C53: US-1 north of Woodbridge | D53: 14th Street Bridge | E53: 17 | F53: 4 lanes widened to 6, 3-2-3, 4-2-4, & 4-2-2-4 | G53: 1975 | I53: North of I-495 became I-395 in 1977 | J53: New IC
B54: 264 | C54: VA-168 in Norfolk | D54: I-64 in Norfolk | E54: 5 | F54: 6 lanes widened to 8 | G54: 2000
B55: 264 | C55: I-64 in Norfolk | D55: Parks Ave. in Virginia Beach | E55: 11 | F55: 4 lanes widened to 6 | G55: 1982 | I55: VA-44 became I-264 in 1999
B56: 264 | C56: I-64 in Norfolk | D56: Rosemont Rd. in Virginia Beach | E56: 5 | F56: 6 lanes widened to 8 | G56: 1993 | I56: VA-44 became I-264 in 1999
B57: 395 | C57: Turkeycock Interchange | D57: Eads Street in Arlington | E57: 7 | F57: 3-2-3 and 4-2-4 widened to 3-3-3 and 4-3-4 | G57: 2019 | I57: Center roadway reversible
B58: 495 | C58: VA-193 Georgetown Pike | D58: American Legion Bridge | E58: 3 | F58: 8 lanes widened to 12 | G58: 2025 | I58: 495 Express Lanes Northern Extension (495 NEXT), $441 million, 2.5 miles | K58: Complete Nov. 2025
B59: 495 | C59: Eisenhower Avenue Connector | D59: Woodrow Wilson Bridge | E59: 4 | F59: 8 and 6 lanes widened to 10 and 12 | G59: 2013 | I59: WWB Project
B60: 495 | C60: VA-193 Georgetown Pike | D60: I-95/I-395 | E60: 11 | F60: 8 lanes widened to 12 | G60: 2012 | I60: 495 Express Lanes
B61: 495 | C61: VA-193 Georgetown Pike | D61: American Legion Bridge | E61: 2 | F61: 6 lanes widened to 8 | G61: 1992
B62: 495 | C62: GW Parkway | D62: US-1 Alexandria | E62: 22 | F62: 4 and 6 lanes widened to 8 | G62: 1978
B63: 564 | C63: Navy Base Norfolk | D63: I-64 | E63: 3 | F63: 4 lanes widened to 6 | G63: 1993
D64: TOTAL Complete | E64: =SUM(E7:E63) -> 399 | G64: TOTAL U.C. | H64: =SUM(H7:H63) -> 80
C66: Non-Interstate Freeways
B67: VA-150 | C67: I-76 | D67: I-95 | E67: 11 | F67: 4 lanes widened to 6 | G67: 2001 | I67: Chippenham Parkway
B68: VA-267 | C68: VA-28 | D68: I-495 | E68: 12 | F68: 4 lanes widened to 6 | G68: 1995 | I68: Dulles Toll Road
B69: VA-267 | C69: VA-28 | D69: I-495 | E69: 12 | F69: 6 lanes widened to 8 | G69: 1999 | I69: Dulles Toll Road
B70: VA-267 | C70: VA-7 | D70: VA-28 | E70: 13 | F70: 4 lanes widened to 6 | G70: 2005 | I70: Dulles Greenway
B71: VA-76 | C71: I-195 | D71: VA-150 | E71: 4 | F71: 4 and 6 lanes widened to 6 and 10 | G71: 1992 | I71: Powhite Parkway
B72: VA-76 | C72: VA-146 | D72: VA-150 | E72: 4 | F72: 6 lanes widened to 8 | G72: 2012 | I72: Powhite Parkway
D73: TOTAL | E73: =SUM(E67:E72) -> 56

Sheet I-64 GAP
B2: I-64 GAP Widening Projects | F2: Last Update: 4-28-2025
B4: Route | C4: Limit | D4: Limit | E4: Miles | F4: Description | G4: Contract | H4: Build | I4: Miles U.C. | J4: Prop. Cost | M4: Award
B5: 64 | C5: 204.9 (just west of the Bottoms Bridge exit) | D5: 215.6 (just east of the New Kent Courthouse/Providence Forge exit) | E5: 10.7 | F5: I-64 GAP Segment A | G5: Design/Build | H5: Fall 2023 to Winter 2026/27 | I5: 10.7 | J5: 277.8 | K5: millions | M5: 210 | N5: Awarded to Shirley Contracting Company, LLC in November 2023
B6: 64 | C6: 215.6 (just east of the New Kent Courthouse/Providence Forge exit) | D6: 224.3 (at the New Kent and James City County line) | E6: 8.7 | F6: I-64 GAP Segment B | G6: Design/Build | H6: Late 2024 to Spring 2028 | I6: 8.7 | J6: 244 | K6: millions | M6: 203 | N6: Price Proposal Opening: December 13, 2024
B7: 64 | C7: 224.3 (New Kent/James City County line) | D7: 233.0 (1.15 miles west of Route 199 (exit 234)) | E7: 8.7 | F7: I-64 GAP Segment C | G7: Design/Build | H7: Spring 2024 to Fall 2027 | I7: 8.7 | J7: 231.2 | K7: millions | M7: 174 | N7: Awarded to Allan Myers, in a joint-venture with Wagman, on April 16, 2024 to Allan Myers
E8: =SUM(E5:E7) -> 28.1 | I8: =SUM(I5:I7) -> 28.1 | J8: =SUM(J5:J7) -> 753 | K8: total cost | M8: =SUM(M5:M7) -> 587
J9: =ROUND(IMDIV(J8,E8),3) -> 26.797 | K9: avg. per mile | M9: =ROUND(IMDIV(M8,I8),3) -> 20.89
B10: I-64 OpportUNITY Connector Federal Grant - Projects | Virginia Department of Transportation (virginiadot.org)
B12: New Kent - I-64 GAP Segment A Widening - Projects | Virginia Department of Transportation (virginiadot.org) | N12: I-64 GAP Segment B Widening - Price Proposal Opening: December 13, 2024
B13: Add one 12 foot lane and 10 foot paved shoulder on the median side, with a 30 foot clear zone. | N13: https://www.youtube.com/watch?v=6ZCJJTUCFrY&ab_channel=VDOTLIVE
B14: The contract award date is anticipated for Sept. 20, 2023. | M14: 202.98 | N14: Allan Myers, in a joint-venture with Wagman.
M15: 203.75 | N15: Shirley Contracting Co. LLC
B16: I-64 Gap Segment C Widening | Virginia Department of Transportation
B17: New Kent/James City County line to approximately 1.15 miles west of Route 199 (exit 234)
B18: Add one 12 foot lane and 10 foot paved shoulder on the median side, with a 30 foot clear zone.
B20: https://rva757connects.com/i64-gap-project
B22: I-64 GAP Segment B; Richmond District; Total Budget $244M (Anticipated RFQ Release – Spring 2024)
B23: Candidate and potential design-build projects | Virginia Department of Transportation
B25: I-64 Gap Segment B | Virginia Department of Transportation
B26: from mile markers 215.6 (just east of the New Kent Courthouse/Providence Forge exit) to 224.3 (at the New Kent and James City County line)
B27: 6 bridge widening/rehabilitations (EB/WB I-64 over Route 627 (Good Hope Road), Beaverdam Creek and Wahrani Swamp)
B28: 8.7 miles of I-64 roadway widening and pavement rehabilitation

Sheet I-81 widening projects
B2: I-81 Widening Projects in Planning | D2: 82 miles of 3-lane widening of 2-lane roadway (41 miles of two-way equivilant)
B3: 1-19-2021 extract | F3: 12.6 % of 325 miles
B4: http://www.improve81.org/ | D4: 21 miles (two-way equivalent) has been widened
B6: Route | C6: Limit | D6: Limit | E6: Miles | F6: Description | G6: Build | H6: Miles U.C. | I6: Low | J6: High | K6: Spread | L6: Avg | T6: SYIP FY 26
B7: 81 | C7: Christiansburg | D7: Ironto | E7: 12.2 | F7: NBL widened from 2 lanes to 3 lanes | G7: 4-2027 to 3-2033 | H7: 0 | I7: 234 | J7: 283 | K7: =SUM(J7/I7) -> 1.209401709 | L7: =AVERAGE(I7:J7) -> 258.5 | M7: millions
B8: 81 | C8: Ironto | D8: W. of Salem | E8: 8.7 | F8: NBL widened from 2 lanes to 3 lanes | G8: 6-2027 to 12-2032 | H8: 0 | I8: 263 | J8: 329 | K8: 1.25095057 | L8: =AVERAGE(I8:J8) -> 296 | O8: 116196 | P8: FROM: MM 119.2 TO: MM 128 | T8: UPC | U8: Description | V8: Route | W8: District | X8: Road System | Y8: Estimate | Z8: Previous | AA8: FY26 | AB8: FY27-31 | AC8: Balance
B9: 81 | C9: Near Salem | D9: Near Salem | E9: 3 | F9: 4 lanes widened to 6 | G9: 10-2021 to 9-2025 | H9: 0 | I9: 174 | J9: 238 | K9: 1.367816092 | L9: 206 | T9: (Values in Thousands of Dollars)
B10: 81 | C10: Near Salem | D10: Near Salem | E10: 3 | F10: 4 lanes widened to 6 | G10: 10-2021 to 9-2025 | H10: 0 | I10: 117 | J10: 274 | K10: 2.341880342 | L10: 195.5
B11: 81 | C11: N. of I-581 | D11: N. of US-220 | E11: 7.1 | F11: 4 lanes widened to 6 | G11: 11-2024 to 9-2029 | H11: 0 | I11: 322 | J11: 476 | K11: 1.47826087 | L11: 399 | T11: 116196 | U11: #I81CIP MM 116 TO MM 128 ADDING NB LANE (ID #31) | V11: 81 | W11: Salem | X11: Interstate | Y11: 459000 | Z11: 36276 | AA11: 36030 | AB11: 145446 | AC11: 241248
B12: 81 | C12: VA-262 south | D12: VA-262 north | E12: 3.5 | F12: 4 lanes widened to 6 | G12: 3-2024 to 7-2027 | H12: 0 | I12: 140 | J12: 212 | K12: 1.514285714 | L12: 176 | U12: (Thousands) Schedule
B13: 81 | C13: At Harrisonburg | D13: At Harrisonburg | E13: 5.9 | F13: 4 lanes widened to 6 | G13: 10-2024 to 10-2028 | H13: 0 | I13: 271 | J13: 362 | K13: 1.335793358 | L13: 316.5 | U13: Prelim. Eng. (PE)$ 25,700 | V13: Underway
B14: 81 | C14: VA-55 | D14: I-66 | E14: 3.5 | F14: SBL widened from 2 lanes to 3 lanes | G14: 1-2024 to 3-2027 | H14: 0 | I14: 117 | J14: 171 | K14: 1.461538462 | L14: 144 | U14: Right of Way (RW) $31,696 | V14: FY2030
B15: 81 | C15: US-50 | D15: VA-37 north | E15: 3.7 | F15: 4 lanes widened to 6 | G15: 3-2028 to 3-2031 | H15: 0 | I15: 221 | J15: 290 | K15: 1.312217195 | L15: 255.5 | U15: Construction (CN) $401,604 | V15: FY2030
E16: =SUM(E7:E15) -> 50.6 | I16: =SUM(I7:I15) -> 1859 | J16: =SUM(J7:J15) -> 2635 | K16: 1.417428725 | L16: =SUM(L7:L15) -> 2247 | M16: total cost | U16: Total Estimate $459,000
I17: =SUM(I16/41) -> 45.34146341 | J17: =SUM(J16/41) -> 64.26829268 | L17: =SUM(L16/41) -> 54.80487805 | M17: avg. per mile
B18: District: Salem | T18: 116197 | U18: #I81CIP IRONTO WIDENING | V18: 81 | W18: Salem | X18: Interstate | Y18: 926223 | Z18: 168845 | AA18: 66907 | AB18: 690471 | AC18: $
B19: Jurisdiction: Christianburg / Montgomery County | F19: CTB 6-20-2-23 | M19: 1-2-2024 extract | U19: Reconstruction w/ Added Capacity
B20: Construction: April 2027 - March 2033 | F20: Updated I-81 Program based on revised estimates and debt service assumptions | M20: Widening | U20: FROM: MM 133.8 TO: MM 137
B21: Budget: $234M - $283M | F21: • Removed UPC 116196 Add Northbound Lane Mile Marker 116 to 128 in Salem District | M21: Widen to three lanes between MM116 and Exit 128 | U21: Widening nine miles from two lanes to three lanes in both directions between exit 128 in Montgomery County and exit 137 in Roanoke County/Salem
B22: Directions: NB only | F22: from the Final SYIP due to inability to fully fund the project within the six-year window | M22: Project ID: 31 | U22: Prelim. Eng. (PE) $29,500 | V22: Complete
B23: Mile marker: 116.2 - 128.4 | M23: UPC: 116196 | U23: Right of Way (RW) $18,000 | V23: Complete
B24: Christiansburg - Ironto | M24: Jurisdiction: Montgomery County / Christianburg | U24: Construction (CN) $878,723 | V24: Underway ??? | X24: Spring 2027
M25: Construction: May 2027 - October 2034 | U25: Total Estimate $926,223
B26: District: Salem | M26: Budget: $359M - $434M | U26: The planned project along nine miles of I-81 near Ironto includes three separate segments:
B27: Jurisdiction: Montgomery County / Roanoke County / Salem | M27: Directions: Northbound Only | U27: Segment N: Mile marker 133.8 to exit 137
B28: Construction: June 2027 - December 2032 | M28: Mile Marker: 116.2 - 128.4 | U28: Segment M: Mile markers 131 to 133.8
B29: Budget: $263M - $329M | U29: Segment S: Exit 128 to mile marker 131
B30: Directions: NB only | U30: https://www.vdot.virginia.gov/projects/salem-district/interstate-81-widening-exit-128-to-exit-137---montgomery-county-and-roanoke-county/
B31: Mile marker: 128.4 - 137.1 | M31: Widening
B32: Ironto - W. of Salem | M32: Widen to three lanes between Exit 128 and Exit 137 | T32: 116201 | U32: #I81CIP EXIT 143 TO EXIT 150 ADDING NB AND SB LANES (ID #40) | V32: 81 | W32: Salem | X32: Interstate | Y32: 462354 | Z32: 134777 | AA32: 175000 | AB32: 152577 | AC32: 0
M33: Project ID: 32 | U33: $479 million D/B contract award July 2024 to Branch Civil Inc., construction begin fall 2025, finish summer 2031
B34: District: Salem | M34: UPC: 116197
B35: Jurisdiction: Salem / Roanoke County | M35: Jurisdiction: Montgomery County / Roanoke County / Salem | T35: 116203 | U35: #I81CIP MM136 TO MM144 ADD LANE IN EACH DIRECTION (ID #39) | V35: 81 | W35: Salem | X35: Interstate | Y35: 232733 | Z35: 232733 | AA35: 0 | AB35: 0 | AC35: 0
B36: Construction: October 2021 - September 2025 | M36: Construction: June 2025 - May 2033 | U36: Overpass of Route 641 (MM 136.6) TO: Ramp from NB I-81 to SB I-581 (MM 143.8)
B37: Budget: $174M - $238M | M37: Budget: $361M - $456M | U37: Started late 2021 - 5.1 miles, $138 M
B38: Directions: Both Directions | M38: Directions: Northbound Only
B39: Mile marker: 136 - 139 | M39: Mile Marker: 128.4 - 137.1 | T39: 116269 | U39: #I81CIP NB & SB MM 221 TO 225, 3-LANE WIDENING (ID #61) | V39: 81 | W39: Staunton | X39: Interstate | Y39: 140524 | Z39: 61409 | AA39: 5189 | AB39: 73927 | AC39: $
B40: Near Salem | U40: VA-262 to VA-262 north 4 lanes widened to 6 Award 4-2023, $101M
B42: District: Salem | M42: Widening | T42: 116280 | U42: #I81CIP NB & SB MM 242 TO 248, 3-LANE WIDENING (ID #62) | V42: 81 | W42: Staunton | X42: Interstate | Y42: 329791 | Z42: 115580 | AA42: 8232 | AB42: 205978 | AC42: 0
B43: Jurisdiction: Salem / Roanoke County | M43: Widen to three lanes between Exit 143 and Exit 150 | U43: The additional lanes will primarily be built to the inside (median side) between mile markers 242.0 and 248.8 in Harrisonburg and Rockingham County.
B44: Construction: October 2021 - September 2025 | M44: Project ID: 40 | U44: https://www.vdot.virginia.gov/projects/staunton-district/interstate-81-harrisonburg-area-widening-exit-243-to-exit-247/
B45: Budget: $117M - $274M | M45: UPC: 116201 | U45: Award 1-2026 $218.9 million to Triton Construction Inc. of St. Albans, W.Va.
B46: Directions: Both Directions | M46: Jurisdiction: Roanoke County / Botetourt County
B47: Mile marker: 139 - 142 | M47: Construction: November 2025 - June 2032 | T47: 116281 | U47: #I81CIP NB&SB BRDGE REPL & 3-LANE WIDENING EXIT 317 (ID #63) | V47: 81 | W47: Staunton | X47: Interstate | Y47: 193921 | Z47: 20406 | AA47: 9000 | AB47: 164515 | AC47: 0
B48: Near Salem | M48: Budget: $479M | U48: Reconstruction w/ Added Capacity
M49: Directions: Both Directions | U49: FROM: MM 317.0 TO: MM 318.8
B50: District: Salem | M50: Mile Marker: 144.2 - 151.3 | U50: Prelim. Eng. (PE) $6,987 Underway
B51: Jurisdiction: Roanoke / Roanoke County | U51: Right of Way (RW) $9,134 FY2027
B52: Construction: November 2024 - October 2029 | U52: Construction (CN) $177,800 FY2027
B53: Budget: $322M - $476M | M53: Curve Improvements | U53: Total Estimate $193,921
B54: Directions: Both Directions | M54: Widening
B55: Mile marker: 144.2 - 151.3 | M55: Project ID: 60 | T55: 116282 | U55: #I81CIP SB MM 200 TO 205, 3-LANE WIDENING (ID #60) | V55: 81 | W55: Staunton | X55: Interstate | Y55: 109761 | Z55: 49556 | AA55: 19641 | AB55: 40564
B56: N. of I-581 to N. of US-220 | M56: UPC: 116282 | U56: Prelim. Eng. (PE) $7,760 Underway
M57: Jurisdiction: Rockbridge County | U57: Right of Way (RW) $331 FY2028
B58: District: Staunton | M58: Construction: September 2026 - March 2030 | U58: Construction (CN) $101,670 FY2029
B59: Jurisdiction: Augusta County / Staunton | M59: Budget: $84M - $121M | U59: Total Estimate $109,761
B60: Construction: March 2024 - July 2027 | M60: Directions: Both Directions
B61: Budget: $140M - $212M | M61: Mile Marker: 202.0 - 204.0 Northbound, 204.5 - 195.1 Southbound | T61: 126389 | U61: #I81CIP NB & SB MM 312 TO 317, 3 LANE WIDENING (ID #63) | V61: 81 | W61: Staunton | X61: Interstate | Y61: 285948 | Z61: 8969 | AA61: 0 | AB61: 72675 | AC61: 204303
B62: Directions: Both Directions | U62: Prelim. Eng. (PE) $8,969 Underway
B63: Mile marker: 221.8 - 225.3 | U63: Right of Way (RW) $10,518 FY2029
B64: At Staunton - VA-262 to VA-262 north | M64: Widening | U64: Construction (CN) $266,460 FY2030
M65: Widen to three lanes between Exit 221 and Exit 225 | U65: Total Estimate $285,948
B66: District: Staunton | M66: Project ID: 61
B67: Jurisdiction: Rockingham County / Harrisonburg | M67: UPC: 116269
B68: Construction: October 2024 - October 2028 | M68: Jurisdiction: Augusta County / Staunton
B69: Budget: $271M - $362M | M69: Construction: April 2023 - June 2027
B70: Directions: Both Directions | M70: Budget: $140.5M
B71: Mile marker: 242.2 - 248.1 | M71: Directions: Both Directions
B72: At Harrisonburg | M72: Mile Marker: 221.4 - 225.6
M73: Project Page: View
B74: District: Staunton
B75: Jurisdiction: Shenandoah County / Warren County / Frederick County
B76: Construction: January 2024 - March 2027 | M76: Widening
B77: Budget: $117M - $171M | M77: Widen to three lanes between Exit 243 and Exit 247
B78: Directions: SB only | M78: Project ID: 62
B79: Mile marker: 299.2 - 295.7 | M79: UPC: 116280
B80: VA-55 to I-66 | M80: Jurisdiction: Rockingham County / Harrisonburg
M81: Construction: May 2025 - September 2029
B82: District: Staunton | M82: Budget: $322.3M
B83: Jurisdiction: Frederick County / Winchester | M83: Directions: Both Directions
B84: Construction: March 2028 - March 2031 | M84: Mile Marker: 242.0 - 248.8
B85: Budget: $221M - $290M | M85: Project Page: View
B86: Directions: Both Directions
B87: Mile marker: 313.8 - 317.5
B88: US-50 to VA-37 north | M88: Widening
M89: Widen to three lanes between MM299 and MM296
M90: Project ID: 50
B91: Spring 2024 | M91: UPC: 116268
B92: Improve 81 | M92: Jurisdiction: Shenandoah County / Warren County
M93: Construction: July 2024 - September 2027
B94: The Commonwealth Transportation Board (CTB) has added a new widening to the I-81 Corridor | M94: Budget: $126.2M
B95: Improvement Program (CIP), while three other projects have seen significant changes. | M95: Directions: Southbound Only
B96: At its December 2023 meeting, the CTB updated the program with the widening of southbound | M96: Mile Marker: 299.6 - 295.4
B97: I-81 between exit 137 (Salem) and exit 128 (Ironto). The roughly $308 million project, located in
B98: Roanoke and Montgomery counties, will add a third travel lane and replace several bridges.
B99: Following a series of traffic studies and public meetings in 2018, the I-81 Corridor Improvement | M99: Widening
B100: Plan identified 106 potential construction projects. Among them were the northbound and | M100: Widen to three lanes between Exit 313 and Exit 317
B101: southbound widening projects between exits 128 and 137. The northbound widening was among | M101: Project ID: 63
B102: 64 projects selected for funding. It is in the early stages of design and engineering, and is | M102: UPC: 116281
B103: scheduled to begin construction in 2025. | M103: Jurisdiction: Frederick County / Winchester
C104: 116197 | D104: FROM: MM 128 TO: MM 136 | M104: Construction: October 2026 - January 2032
M105: Budget: $332.6M
B106: Route | C106: Limit | D106: Limit | E106: Miles | F106: Description | G106: Build | H106: Miles U.C. | I106: Low | J106: High | K106: Spread | L106: Avg
B107: 81 | C107: Salem (Exit 137) | D107: Ironto (Exit 128) | E107: 11 | F107: SBL widened from 2 lanes to 3 lanes | G107: 2025 to 2028 | H107: 0 | L107: 308 | M107: millions

Sheet US 58
B2: US 58 Hillsville - Stuart | D2: FY24 Final SYIP
I3: 2018
B4: UPC | C4: 17535 | I4: https://www.ctb.virginia.gov/resources/2018/mar/pres/1_route_58.pdf
B5: Project | C5: RTE 58 - HILLSVILLE BYPASS-CORRIDOR DEV PROG-4 LANES | I5: The 36-mile section between Stuart and Hillsville in the Salem District was the last segment needed to connect the improved Route 58 corridor from the Port of Virginia to Interstate 77.
B6: Scope of Work | C6: Relocation
B7: Description | C7: FROM: 0.160KM EAST RTE 714 TO: 0.131 KM N SOUTH INT RTE 722E) | I7: Three segments of widening have been completed.
B8: Length | C8: 8.4870 KM | P8: 2018 | R8: 2023 | T8: FY 2026 SYIP
C9: Estimated Cost (thousands) | D9: Schedule | I9: Project Length Completion Cost | O9: Miles | P9: Cost M | R9: Cost M | T9: Cost M
B10: Prelim. Eng. (PE) | C10: 5568 | D10: Complete | I10: Meadows of Dan Bypass 2.7 miles May 2006 $20 M | O10: 2.7 | P10: 20
B11: Right of Way (RW) | C11: 10235 | D11: Complete | I11: Hillsville Bypass 5.2 miles August 2011 $106.3 M | O11: 5.2 | P11: 106.3
B12: Construction (CN) | C12: 90765 | D12: Complete | I12: Tri-County and Laurel Fork 8.2 miles October 2016 $120 M | O12: 8.2 | P12: 120
B13: Total Estimate | C13: 106567 | P13: =SUM(P10:P12) -> 246.3
I14: The three remaining projects are fully funded in the SYIP
B15: UPC | C15: 17536
B16: Project | C16: RTE 58 - CORRIDOR DEVELPMENT PROG - 4 LANES (LOVERS LEAP) | I16: Project Length Cost Funded
B17: Scope of Work | C17: Reconstruction w/ Added Capacity | I17: Lovers Leap 7.8 miles $258.3 M FY2021 | O17: 7.8 | P17: 258.3 | R17: 352.4 | T17: 352.4 | U17: u.c.
B18: Description | C18: FROM: 0.364 Mi. E. Int. Route 610 (Cloudbreak Road) TO: 0.776 Mi. N. Stuart NCL | I18: Vesta 4 miles $98 M FY2021 | O18: 4 | P18: 98 | R18: 335.2 | T18: 256.1 | U18: u.c.
B19: Length | C19: 7.4050 MI | I19: Crooked Oak 7.2 miles $168.5 M FY2023 | O19: 7.2 | P19: 168.5 | R19: 495 | T19: 490 | U19: FY29
C20: Estimated Cost (thousands) | D20: Schedule | M20: TOTAL | O20: =SUM(O10:O19) -> 35.1 | P20: =SUM(P17:P19) -> 524.8 | R20: =SUM(R17:R19) -> 1182.6 | T20: =SUM(T17:T19) -> 1098.5
B21: Prelim. Eng. (PE) | C21: 8050 | D21: Complete
B22: Right of Way (RW) | C22: 10200 | D22: Complete | M22: GRAND TOTAL | P22: =SUM(P13,P20) -> 771.1 | R22: =SUM(P13,R20) -> 1428.9 | T22: =SUM(P13,T20) -> 1344.8
B23: Construction (CN) | C23: 334124 | D23: Underway
B24: Total Estimate | C24: 352375 | I24: 2025-03-16
I25: https://www.vdot.virginia.gov/projects/salem-district/route-58-widening--vesta-in-patrick-county/
B26: UPC | C26: 17537 | I26: This $235 million design-build project involves widening approximately 4.5 miles of Route 58 in Patrick County from two lanes to four lanes. The project begins near the Route 58 Business eastern intersection in Meadows of Dan and ends about 0.5 mile east of Route 610 (Cloudbreak Road).
B27: Project | C27: RTE 58 - CORRIDOR DEVELOPMENT PROG - 4 LANES (VESTA) | I27: Status: Under construction
B28: Scope of Work | C28: Reconstruction w/ Added Capacity | I28: Estimated start date: Spring 2025
B29: Description | C29: FROM: 0.10 MI WEST ROUTE 795 TO: 0.51 MI EAST ROUTE 610 - EAST INTX (CLOUDBREAK ROAD) | I29: Estimated completion date: Fall 2030
B30: Length | C30: 4.5500 MI
C31: Estimated Cost (thousands) | D31: Schedule
B32: Prelim. Eng. (PE) | C32: 38900 | D32: Complete | I32: Vesta -- Branch-Rinker D-B -- $175 million
B33: Right of Way (RW) | C33: 11800 | D33: Underway | I33: https://www.vdot.virginia.gov/media/vdotvirginiagov/doing-business/business-opportunities/alternative-project-delivery/price-proposals/17537---Price-Proposal---Branch.pdf
B34: Construction (CN) | C34: 284500 | D34: FY2027 | I34: Jan. 21, 2025
B35: Total Estimate | C35: 335200 | I35: Under construction
B37: UPC | C37: 17534 | I37: Lovers Leap in Patrick County
B38: Project | C38: RTE 58 - CORRIDOR DEVELOPMENT PROG - 4 LANES (CROOKED OAK) | I38: https://www.vdot.virginia.gov/projects/salem-district/route-58-widening---lovers-leap-in-patrick-county-ppta-project/
B39: Scope of Work | C39: Reconstruction w/ Added Capacity | I39: Jul. 17, 2025
B40: Description | C40: FROM: 0.131 KILOMETER WEST ROUTE 820 TO: 0.492 KILOMETER EAST BIG REED ISLAND CREEK | I40: Status: Under construction
B41: Report Note | C41: Balance to be determined in FY24 SYIP update | I41: Estimated start date: Spring 2025
B42: Length | C42: 11.5060 KM | I42: Estimated completion date: Fall 2030
C43: Estimated Cost (thousands) | D43: Schedule
B44: Prelim. Eng. (PE) | C44: 35000 | D44: Complete | I44: https://www.vdot.virginia.gov/news-events/news/salem-district/traffic-alert-new-traffic-patterns-coming-on-route-58-lovers-leap-project-in-july.php
B45: Right of Way (RW) | C45: 14000 | D45: Underway | I45: As of June 2025, overall construction on the project is about 70 percent complete with the final completion anticipated in summer 2026.
B46: Construction (CN) | C46: 446000 | D46: FY2029 | I46: Jul. 7, 2025
B47: Total Estimate | C47: 495000
I48: https://www.vdot.virginia.gov/news-events/news/salem-district/vdot-provides-update-on-route-58-lovers-leap-project.php
I49: In spring 2022, the Virginia Department of Transportation’s (VDOT) design-build contractor Branch Civil Inc. began work on the construction phase of the $300 million project to widen Route 58 over Lovers Leap Mountain in Patrick County.
I50: Oct. 31, 2023
J51: $300 M

Sheet US 460 Corr. Q
B3: Construction of the Route 460 Connector Phase I began Aug. 7, 2009, and was completed June 2015. VDOT said the span across Grassy Creek will open to traffic when Kentucky completes construction on adjacent Route 460 between the bridges and Elk Horn City is completed in 2020.
B5: Details By Design
B6: Located near Breaks Interstate Park, the Grassy Creek bridges are 1,700-ft.-long cast-in-place segmental bridges, each with a deck width of 43 ft. to be able to carry two lanes of traffic in each direction, with a vertical clearance of 250 ft., said a VDOT spokesperson.
B7: Bridge to Nowhere … Long-Finished Span May Open Soon : CEG (constructionequipmentguide.com)
B8: THU JULY 23, 2020
B9: Funding
B10: The twin spans and a short stretch of highway connected to the southern end cost approximately $120 million. Federal funding for the project dried up before work began on the connecting roads, but construction resumed on less ambitious plans and a budget of $300 million to complete the project. VDOT's revised plans will funnel traffic off the four-lane bridge to two lanes, with climbing lanes where needed.
B12: Current Status
B13: Approximately 12 mi. of Corridor Q construction in Virginia are completed, completed to rough grade, or under construction. The final 1.6 mi. of Corridor Q construction in Virginia are currently unfunded.
B15: Following are updates from VDOT for each phase:
B17: 460 Connector Phase II (6.2 mi.): Construction began October 2015, completed to rough grade summer 2019. Two-lane with climbing lanes.
B18: 121-Corridor Q Intersection (0.57 mi.): Construction began spring 2019, completed to rough grade spring 2020.
B19: Route 460/121 (Coalfield Expressway) — Hawks Nest (2 mi.) Construction completed to rough grade in June 2011. Two-lane with climbing lanes.
B20: Poplar Creek Phase A (2.9 mi.): Construction began Aug. 21, 2019. The estimated completion for construction is late 2024. Two-lane roadway with climbing lanes. Provides at grade connection with Route 604 (Poplar Creek). Includes a triple box culvert, 7 ft. by 7 ft. and 2,250 ft. in length. Under a maximum of 310 ft. of fill.
B21: Poplar Creek Phase B (1.6 mi.): unfunded at this time. Includes a two-lane roadway with climbing lanes as needed and will include a bridge over the Levisa Fork River. Poplar Creek Phase B will tie into U.S. Route 460 west of Grundy, and completed Corridor Q in Commonwealth.
B22: In addition, VDOT reported that a design contract for paving the Route 460 Connector Phase II is under way, with advertisement for paving anticipated to occur in 2021. A contract for paving of the Route 460/121
B23: intersection and Route 460/121 Hawk's Nest section is being negotiated, with paving anticipated to begin in 2021.
B26: Brochure_PCA_170130_Web.pdf (virginiadot.org)
B27: CFX Project Status (virginiadot.org)
B30: Feb. 14, 2025 extract:
B31: Construction is underway for Route 460/121 - Poplar Creek Phase B (Buchanan County) and includes a new four-lane roadway and a bridge over the railroad and the Levisa Fork. The bridge will be 175-feet tall, making it the second tallest bridge in Virginia. Route 460/121 Poplar Creek B completes Corridor Q in Virginia. The project is approximately two miles long.
B32: The project is valued at approximately $207 million (preliminary engineering, right of way, project oversight and construction).
B33: Route 460/121 Poplar Creek Phase B construction began in 2023.
B34: Status: Under construction
B35: Estimated start date: 2023
B36: Estimated completion date: 2027
B37: https://www.vdot.virginia.gov/projects/bristol-district/corridor-q-route-460121-poplar-creek-phase-b-buchanan-county/
B38: https://www.youtube.com/watch?v=BHE92-YmC2U&ab_channel=VirginiaDepartmentofTransportation%28VDOT%29
